bitfinex-derivatives/quotes_ETHF0:USTF0_20250504
["timestamp","ask_amount","ask_price","bid_price","bid_amount"]
[1746324520301,9.26287,1843.6,1843.5,145.331]
[1746324521304,14.26287,1843.6,1843.5,145.331]
[1746324522010,3.688,1843.6,1843.5,146.41573]
[1746324522907,7.99182228,1843.6,1843.5,148.03863]
[1746324523418,7.99182228,1843.6,1843.5,153.03863]
[1746324523808,7.99182228,1843.6,1843.5,155.9147]
[1746324524206,4.30382228,1843.6,1843.5,155.9147]
[1746324525407,4.30382228,1843.6,1843.5,159.1225]
[1746324526315,4.29217,1844.1,1843.9,1.08446]
[1746324526515,4.29217,1844.1,1844.0,1.6368]
[1746324526811,3.2078,1844.1,1844.0,2.72123]
[1746324527612,4.29217,1844.1,1844.0,1.6368]
[1746324529007,1.08449,1843.9,1843.8,1.08453]
[1746324529206,3.2078,1843.9,1843.8,2.67663]
[1746324529815,4.8472,1843.9,1843.8,2.67663]
[1746324530316,4.8472,1843.9,1843.8,2.67665]
[1746324530712,5.93169,1843.9,1843.8,1.5921]
[1746324531016,4.8472,1843.9,1843.7,1.08457]
[1746324531217,1.08455,1843.8,1843.7,1.08457]
[1746324531417,1.6394,1843.8,1843.7,1.08457]
[1746324531714,3.2078,1843.9,1843.8,1.08455]
[1746324534109,8.44710195,1844.1,1844.0,1.08443]
[1746324534719,6.81980195,1844.1,1844.0,1.08443]
[1746324537214,7.90417195,1844.1,1844.0,1.08443]
[1746324537414,9.62137195,1844.1,1843.9,1.6836]
[1746324537609,8.53700195,1844.1,1844.0,1.08443]
[1746324538219,4.925,1844.1,1844.0,1.08443]
[1746324541131,3.2078,1844.1,1844.0,1.08443]
[1746324543229,3.61200195,1844.2,1844.1,1.08437]
[1746324543429,3.61200195,1844.2,1844.1,5.52517]
[1746324544828,3.61200195,1844.2,1844.1,8.73297]
[1746324546230,7.22400391,1844.4,1844.1,15.52467]
[1746324546533,3.2078,1844.7,1844.5,1.08414]
[1746324546534,5.41930231,1844.6,1844.5,1.08414]
[1746324551135,1.6948,1844.8,1844.7,1.08402]
[1746324558643,2.77876,1844.8,1844.7,1.08402]
[1746324559540,1.08425,1844.4,1844.2,5.0693]
[1746324559743,3.2078,1844.6,1844.3,1.6268]
[1746324559940,3.2078,1844.6,1844.5,1.08414]
[1746324560637,4.5727,1844.8,1844.7,1.08402]
[1746324560937,3.2078,1844.8,1844.7,1.08402]
[1746324561741,3.2078,1844.8,1844.7,2.71082]
[1746324563756,10.43180391,1845.2,1844.8,2.70988]
[1746324564044,10.43180391,1845.2,1845.1,1.08378]
[1746324564641,3.2078,1845.2,1845.1,1.08378]
[1746324564839,7.22400391,1845.4,1845.3,1.08367]
[1746324565545,7.22400391,1845.4,1845.2,1.08369]
[1746324565546,8.30762391,1845.4,1845.2,1.08369]
[1746324565748,10.43180391,1845.4,1845.2,2.72909]
[1746324565950,10.43180391,1845.4,1845.3,1.08367]
[1746324568051,10.43180391,1845.4,1845.3,4.95867]
[1746324568448,12.15900391,1845.4,1845.3,4.95867]
[1746324568953,13.24261391,1845.4,1845.3,3.875]
[1746324569247,14.63111391,1845.4,1845.3,3.875]
[1746324569449,6.3235,1845.4,1845.3,3.875]
[1746324569651,7.40711,1845.4,1845.3,3.875]
[1746324570038,7.40711,1845.4,1845.2,2.7291]
[1746324570243,6.3235,1845.4,1845.0,6.33041]
[1746324570644,2.4456,1845.3,1845.1,1.08375]
[1746324570950,2.4456,1845.3,1845.2,2.79173]
[1746324570951,3.0891,1845.3,1845.2,2.79173]
[1746324571650,1.7272,1845.3,1845.2,2.79173]
[1746324573352,5.67991,1845.4,1845.2,2.79167]
[1746324573541,5.67991,1845.4,1845.3,1.08367]
[1746324574458,4.5963,1845.4,1845.3,1.08367]
[1746324574953,5.67991,1845.4,1845.3,1.08367]
[1746324575956,4.5963,1845.4,1845.3,1.08367]
[1746324576253,5.67991,1845.4,1845.3,1.08367]
[1746324576852,5.67991,1845.4,1845.2,146.02168]
[1746324577355,5.67991,1845.4,1845.3,1.08367]
[1746324577752,3.2078,1845.4,1845.3,1.08367]
[1746324578149,3.2078,1845.6,1845.5,1.08355]
[1746324578350,1.08356,1845.5,1845.4,1.08359]
[1746324578550,1.08356,1845.5,1845.4,1.6557]
[1746324578750,2.76596,1845.5,1845.4,1.6557]
[1746324579652,1.08367,1845.3,1845.2,143.23]
[1746324579851,1.08367,1845.3,1845.2,144.31373]
[1746324580157,5.76535,1845.4,1845.2,144.31373]
[1746324580557,1.08367,1845.3,1845.2,144.31373]
[1746324580752,5.76535,1845.4,1845.2,143.23]
[1746324580953,4.6817,1845.4,1845.3,2.77587]
[1746324581158,3.2078,1845.4,1845.3,2.77587]
[1746324581756,4.29141,1845.4,1845.3,2.77587]
[1746324581958,4.29141,1845.4,1845.3,1.6922]
[1746324582460,3.2078,1845.4,1845.3,2.77587]
[1746324583160,4.29141,1845.4,1845.3,2.77587]
[1746324583653,4.29141,1845.4,1845.2,144.3137]
[1746324583654,1.08367,1845.3,1845.2,144.3137]
[1746324583853,2.70887,1845.3,1845.2,144.3137]
[1746324584461,1.6252,1845.3,1845.2,144.3137]
[1746324584962,4.29145,1845.4,1845.3,1.08367]
[1746324585161,3.2078,1845.4,1845.3,2.70227]
[1746324586261,4.29141,1845.4,1845.3,2.70227]
[1746324586462,1.08367,1845.3,1845.2,143.23]
[1746324586662,2.65097,1845.3,1845.2,143.23]
[1746324586962,2.65097,1845.3,1845.2,144.8555]
[1746324587764,2.65097,1845.3,1845.2,145.93923]
[1746324588557,1.08367,1845.3,1845.2,145.93923]
[1746324588761,1.08367,1845.3,1845.2,144.8555]
[1746324589058,5.58807,1845.3,1845.2,143.23]
[1746324592868,10.58807,1845.3,1845.2,143.23]
[1746324593060,5.58807,1845.3,1845.2,143.23]
[1746324593461,6.27924222,1845.3,1845.2,143.23]
[1746324593661,11.27924222,1845.3,1845.2,143.23]
[1746324595065,6.27924222,1845.3,1845.2,143.23]
[1746324595962,6.27924222,1845.3,1845.2,141.75228]
[1746324595963,11.27924222,1845.3,1845.2,141.75228]
[1746324596168,11.27924222,1845.3,1845.2,128.69959512]
[1746324596370,11.27924222,1845.3,1845.2,125.60988512]
[1746324597170,11.27924222,1845.3,1845.2,124.05955512]
[1746324597372,11.27924222,1845.3,1845.2,122.59199512]
[1746324597672,11.27924222,1845.3,1845.2,121.01669512]
[1746324597868,18.05051137,1845.3,1845.2,109.76865962]
[1746324598072,18.05051137,1845.3,1845.2,87.00149433]
[1746324598273,18.05051137,1845.3,1845.2,84.77816433]
[1746324598468,18.05051137,1845.3,1845.2,76.42564589]
[1746324598675,18.05051137,1845.3,1845.2,73.98365589]
[1746324598973,18.05051137,1845.3,1845.2,72.08622589]
[1746324599673,18.05051137,1845.3,1845.2,70.96787589]
[1746324599876,18.05051137,1845.3,1845.2,69.78465589]
[1746324600066,18.05051137,1845.3,1845.2,68.58560589]
[1746324600266,18.05051137,1845.3,1845.2,53.6424655]
[1746324600573,18.05051137,1845.3,1845.2,51.1962155]
[1746324600768,18.05051137,1845.3,1845.2,30.56098021]
[1746324600966,29.46051137,1845.3,1845.2,5.99338082]
[1746324601168,29.46051137,1845.3,1843.9,2.87607]
[1746324601169,1.08408,1844.6,1844.5,1.7123]
[1746324601371,1.0842,1844.4,1844.3,2.8871]
[1746324601574,1.08431,1844.2,1844.1,1.6119]
[1746324601966,1.08431,1844.2,1844.1,6.6119]
[1746324602268,1.08431,1844.2,1844.1,1.6119]
[1746324602470,1.08431,1844.2,1844.1,6.6119]
[1746324603575,4.29211,1844.2,1844.1,1.6119]
[1746324608676,1.08431,1844.2,1844.1,1.6119]
[1746324608880,4.29211,1844.2,1844.1,1.6119]
[1746324610082,8.61758834,1844.4,1844.1,6.6119]
[1746324610272,5.40978834,1844.4,1844.3,1.08425]
[1746324610776,5.40978834,1844.4,1844.3,6.08425]
[1746324611177,9.70167834,1844.6,1844.4,1.08417]
[1746324611379,5.40978834,1844.6,1844.5,2.49954]
[1746324611580,0.53288834,1844.6,1844.5,6.30954]
[1746324611781,0.53288834,1844.6,1844.5,11.30954]
[1746324613079,7.21305113,1844.7,1844.6,1.08408]
[1746324613280,7.21305113,1844.7,1844.6,4.29188]
[1746324613477,7.21305113,1844.7,1844.6,9.29188]
[1746324615681,1.08394,1844.9,1844.7,1.084]
[1746324615982,1.08394,1844.9,1844.7,2.7409]
[1746324616281,1.08394,1844.9,1844.8,1.4427]
[1746324616481,1.08394,1844.9,1844.8,3.0996]
[1746324617776,1.08389,1845.0,1844.8,4.18356]
[1746324617976,1.08389,1845.0,1844.9,1.7218]
[1746324619782,3.2078,1845.1,1844.9,1.7218]
[1746324619982,1.08384,1845.0,1844.9,1.7218]
[1746324621170,2.81534,1845.0,1844.9,1.7218]
[1746324627188,1.0839,1844.9,1844.8,1.4427]
[1746324627481,2.6508,1844.9,1844.8,1.4427]
[1746324627878,2.6508,1844.9,1844.8,3.1503]
[1746324629179,1.08408,1844.6,1844.5,5.2254]
[1746324629478,1.08414,1844.5,1844.4,1.4089]
[1746324629684,1.08414,1844.5,1844.4,3.1389]
[1746324630885,1.08429,1844.3,1844.1,6.29195]
[1746324631088,2.68242,1844.4,1844.2,1.08431]
[1746324631385,1.5982,1844.3,1844.2,2.81431]
[1746324631886,2.68245,1844.3,1844.2,1.73]
[1746324632186,1.5982,1844.3,1844.2,2.81431]
[1746324633388,2.68245,1844.3,1844.2,1.73]
[1746324634184,1.08431,1844.2,1844.1,3.8]
[1746324634389,2.79491,1844.2,1844.1,3.8]
[1746324634689,1.7106,1844.2,1844.1,1.08437]
[1746324634884,1.7106,1844.2,1844.1,2.73467]
[1746324636389,2.79491,1844.2,1844.1,1.6503]
[1746324637692,2.79491,1844.2,1844.1,2.73467]
[1746324637895,2.79491,1844.2,1844.1,1.6503]
[1746324638189,2.79491,1844.2,1844.1,2.73467]
[1746324638190,1.7106,1844.2,1844.1,2.73467]
[1746324640196,2.79491,1844.2,1844.1,2.73467]
[1746324641899,1.7106,1844.2,1844.1,2.73467]
[1746324642092,2.56617,1844.5,1844.3,1.08425]
[1746324642398,1.0842,1844.4,1844.3,1.08423]
[1746324642694,1.0842,1844.4,1844.3,1.6635]
[1746324643898,1.0842,1844.4,1844.3,2.74775]
[1746324644197,4.27137,1844.5,1844.3,2.74775]
[1746324644395,4.27137,1844.5,1844.4,1.6237]
[1746324645196,3.1872,1844.5,1844.4,2.7079]
[1746324645491,1.6676,1844.7,1844.4,1.6237]
[1746324645687,1.6676,1844.7,1844.5,3.0491]
[1746324646900,1.0841,1844.6,1844.5,4.13323]
[1746324647696,2.75167,1844.7,1844.5,4.13323]
[1746324648093,6.196,1844.8,1844.6,2.65188]
[1746324648302,7.4313,1844.8,1844.6,2.65188]
[1746324648599,7.4313,1844.8,1844.7,1.5678]
[1746324648796,2.6762,1844.8,1844.7,1.5678]
[1746324648997,1.5922,1844.8,1844.7,2.65182]
[1746324649196,2.67616,1844.8,1844.7,1.5678]
[1746324650700,15.75025113,1845.0,1844.7,1.5678]
[1746324650901,1.08392,1844.9,1844.7,2.65176]
[1746324651103,1.08392,1844.9,1844.8,1.6062]
[1746324652202,18.53285113,1845.0,1844.8,2.69016]
[1746324652402,1.0839,1844.9,1844.8,1.6062]
[1746324653906,1.0839,1844.9,1844.8,2.69016]
[1746324654102,17.44895113,1845.0,1844.8,2.69016]
[1746324654103,18.53284113,1845.0,1844.8,2.69016]
[1746324654308,7.51979,1845.0,1844.9,1.6455]
[1746324654605,7.51979,1845.0,1844.9,2.7294]
[1746324654606,3.2281,1845.0,1844.9,2.7294]
[1746324654903,1.4731,1845.1,1844.9,3.7465]
[1746324655104,4.2194,1845.1,1845.0,1.6455]
[1746324656306,3.1356,1845.1,1845.0,2.72934]
[1746324656905,4.21938,1845.1,1845.0,1.6455]
[1746324657405,1.08384,1845.0,1844.9,2.101]
[1746324657606,2.80714,1845.0,1844.9,2.101]
[1746324660398,1.7233,1845.0,1844.9,3.1849]
[1746324660604,1.7233,1845.0,1844.9,4.8125]
[1746324660806,2.80714,1845.0,1844.9,3.7286]
[1746324661103,2.80714,1845.0,1844.9,2.101]
[1746324661704,1.7233,1845.0,1844.9,4.8125]
[1746324663813,11.00705113,1845.4,1844.9,4.8125]
[1746324663814,7.21305113,1845.4,1844.9,11.43832]
[1746324664110,7.21305113,1845.4,1845.3,1.08367]
[1746324664303,7.21305113,1845.4,1845.3,3.18467]
[1746324666811,7.21305113,1845.4,1845.3,4.91067]
[1746324667016,8.29666113,1845.4,1845.3,3.827]
[1746324667411,9.94666113,1845.4,1845.3,3.827]
[1746324667612,8.86305113,1845.4,1845.3,4.91067]
[1746324668013,9.94666113,1845.4,1845.3,4.91067]
[1746324668215,7.21305113,1845.4,1845.3,4.91067]
[1746324670121,5.94128,1845.7,1845.5,1.08351]
[1746324670122,9.54914277,1845.7,1845.5,1.08351]
[1746324670313,8.46566277,1845.7,1845.6,2.77909]
[1746324670609,6.81566277,1845.7,1845.6,2.77909]
[1746324670811,3.60786277,1845.7,1845.6,4.88009]
[1746324671213,7.21305113,1845.9,1845.8,1.08337]
[1746324671409,7.21305113,1845.9,1845.8,6.97837]
[1746324671609,7.21305113,1845.9,1845.8,10.18617]
[1746324671809,7.21305113,1845.9,1845.8,13.19157]
[1746324672009,9.01631391,1846.1,1846.0,1.08326]
[1746324672215,9.01631391,1846.1,1846.0,4.29106]
[1746324673114,9.01631391,1846.1,1846.0,3.2078]
[1746324673512,9.01631391,1846.1,1845.9,2.74001]
[1746324673809,1.7163,1846.0,1845.9,2.74001]
[1746324674204,2.79956,1846.0,1845.9,2.101]
[1746324674412,4.36046,1846.0,1845.9,2.101]
[1746324675009,11.60791391,1846.1,1845.9,3.18431]
[1746324675209,11.60791391,1846.1,1845.9,4.90101]
[1746324675412,2.5916,1846.1,1846.0,1.7167]
[1746324675810,1.5084,1846.1,1846.0,2.79996]
[1746324676715,1.6422,1846.2,1846.1,1.0832]
[1746324676916,6.0911,1846.3,1846.2,1.08314]
[1746324677116,7.7333,1846.3,1846.2,3.18414]
[1746324677513,7.7333,1846.3,1846.2,4.90084]
[1746324677820,7.7333,1846.3,1846.2,3.8177]
[1746324678219,8.81638,1846.3,1846.2,3.8177]
[1746324678517,8.81638,1846.3,1846.2,2.101]
[1746324678916,8.82229837,1846.3,1846.2,2.101]
[1746324680213,7.73921837,1846.3,1846.2,3.18414]
[1746324681022,8.82229837,1846.3,1846.2,2.101]
[1746324681219,7.73921837,1846.3,1846.2,3.18414]
[1746324681419,7.73921837,1846.3,1846.2,2.101]
[1746324681620,8.82229837,1846.3,1846.2,2.101]
[1746324682221,7.73921837,1846.3,1846.2,3.18414]
[1746324682425,7.73921837,1846.3,1846.2,2.101]
[1746324682614,8.82229837,1846.3,1846.2,2.101]
[1746324683220,7.73921837,1846.3,1846.2,3.6831]
[1746324683421,8.82229837,1846.3,1846.2,3.6831]
[1746324683721,5.61449837,1846.3,1846.2,3.6831]
[1746324685325,3.07001837,1846.3,1846.2,4.76624]
[1746324686125,0.00591837,1846.3,1846.2,4.76624]
[1746324686624,1.08899837,1846.3,1846.2,3.6831]
[1746324686817,0.00591837,1846.3,1846.2,4.76624]
[1746324687221,1.69751837,1846.3,1846.2,4.76624]
[1746324687719,2.78059837,1846.3,1846.2,3.6831]
[1746324688223,1.69751837,1846.3,1846.2,4.76624]
[1746324688524,0.00591837,1846.3,1846.2,4.76624]
[1746324689826,1.08899837,1846.3,1846.2,3.6831]
[1746324690025,2.75519837,1846.3,1846.2,3.6831]
[1746324691126,1.67211837,1846.3,1846.2,4.76624]
[1746324691325,2.75519837,1846.3,1846.2,3.6831]
[1746324692123,2.75519837,1846.3,1846.2,2.101]
[1746324695228,2.75519837,1846.3,1845.8,5.3763]
[1746324695229,1.08331,1845.9,1845.8,5.3763]
[1746324695431,1.08331,1845.9,1845.8,17.9423]
[1746324696029,2.74241,1845.9,1845.8,17.9423]
[1746324696830,5.95021,1845.9,1845.8,12.566]
[1746324697135,10.95021,1845.9,1845.8,12.566]
[1746324697730,5.95021,1845.9,1845.8,12.566]
[1746324699131,10.95021,1845.9,1845.8,12.566]
[1746324699331,14.73521,1845.9,1845.8,12.566]
[1746324699531,1.08367,1845.3,1845.2,3.2078]
[1746324699734,1.08367,1845.3,1845.2,3.805]
[1746324701522,2.65357,1845.3,1845.2,3.805]
[1746324701933,5.86137,1845.3,1845.2,3.805]
[1746324705633,1.5641,1845.4,1845.2,3.805]
[1746324705838,1.08361,1845.4,1845.3,1.6877]
[1746324706039,1.08361,1845.4,1845.3,3.1562]
[1746324706730,2.74751,1845.4,1845.3,3.1562]
[1746324707241,4.29138,1845.5,1845.3,4.23986]
[1746324707444,4.29138,1845.5,1845.4,1.6877]
[1746324708145,3.2078,1845.5,1845.4,1.6877]
[1746324708345,4.29135,1845.5,1845.4,1.6877]
[1746324708532,5.89445,1845.5,1845.4,1.6877]
[1746324709939,1.08361,1845.4,1845.3,6.7397]
[1746324710143,2.68671,1845.4,1845.3,6.7397]
[1746324710442,2.68671,1845.4,1845.3,8.3769]
[1746324711946,6.6031,1845.4,1844.6,9.87087]
[1746324712241,6.6031,1845.4,1844.6,4.6621]
[1746324712242,5.91759,1844.9,1844.6,4.6621]
[1746324712443,4.29182,1844.7,1844.6,3.1276]
[1746324712631,1.08402,1844.7,1844.6,3.1276]
[1746324712837,2.75102,1844.7,1844.6,3.1276]
[1746324713247,2.75102,1844.7,1844.6,1.6224]
[1746324716243,2.75102,1844.7,1844.6,2.1614]
[1746324716448,2.75102,1844.7,1844.6,0.539]
[1746324718050,5.95882,1844.7,1844.6,0.539]
[1746324721253,10.95882,1844.7,1844.6,0.539]
[1746324721949,14.73982,1844.7,1844.6,0.539]
[1746324722552,9.73982,1844.7,1844.6,0.539]
[1746324723652,6.53202,1844.7,1844.6,0.539]
[1746324723852,9.73982,1844.7,1844.6,0.539]
[1746324724855,9.73982,1844.7,1844.6,1e-05]
[1746324726251,14.73982,1844.7,1844.6,1e-05]
[1746324727055,9.73982,1844.7,1844.6,1e-05]
[1746324733265,9.74082,1844.7,1844.6,1e-05]
[1746324737259,9.74082,1844.7,1844.6,1.80911]
[1746324738161,5.95882,1844.7,1844.6,1.80911]
[1746324738462,4.29182,1844.7,1844.6,1.80911]
[1746324740363,6.22242,1844.7,1844.6,1e-05]
[1746324745657,6.22242,1844.7,1844.6,1.90971]
[1746324746263,4.29182,1844.7,1844.6,1.90971]
[1746324746661,1.08402,1844.7,1844.6,6.90971]
[1746324746969,5.39927553,1844.9,1844.8,1.08396]
[1746324747161,5.39927553,1844.9,1844.8,4.29176]
[1746324747458,7.19828944,1845.0,1844.9,1.0839]
[1746324747853,7.19828944,1845.0,1844.9,8.0419]
[1746324748458,7.19828944,1845.0,1844.9,6.958]
[1746324748858,7.19828944,1845.0,1844.9,1.958]
[1746324748859,8.28212944,1845.0,1844.9,1.958]
[1746324749867,1.08384,1845.0,1844.9,1.958]
[1746324750065,3.2078,1845.1,1844.9,1.958]
[1746324750259,4.29164,1845.1,1844.9,1.958]
[1746324750459,4.29164,1845.1,1845.0,1.926]
[1746324753069,1.08384,1845.0,1844.9,1.958]
[1746324754162,3.2078,1845.1,1844.9,8.0419]
[1746324754363,3.2078,1845.1,1845.0,1.08384]
[1746324754569,3.2078,1845.1,1845.0,1.928]
[1746324754870,3.2078,1845.1,1845.0,3.01184]
[1746324755266,3.2078,1845.1,1845.0,1.928]
[1746324755571,3.2078,1845.1,1845.0,3.01184]
[1746324756366,3.2078,1845.1,1845.0,1.928]
[1746324756565,4.29149,1845.3,1845.1,1.08376]
[1746324756765,4.29149,1845.3,1845.2,3.7181]
[1746324756967,4.29149,1845.3,1845.2,5.56]
[1746324758072,3.2078,1845.3,1845.2,6.64373]
[1746324758574,3.2078,1845.3,1845.2,5.56]
[1746324758973,4.29147,1845.3,1845.2,5.56]
[1746324760375,4.29147,1845.3,1845.2,1.8113]
[1746324762379,3.2078,1845.3,1845.2,1.8113]
[1746324762880,3.2078,1845.3,1845.2,2.89503]
[1746324763180,3.2078,1845.3,1845.2,1.8113]
[1746324763976,4.29147,1845.3,1845.2,1.8113]
[1746324764678,3.2078,1845.3,1845.2,1.8113]
[1746324764881,4.29147,1845.3,1845.2,1.8113]
[1746324765975,1.08367,1845.3,1845.2,1.8113]
[1746324769979,4.93407,1845.3,1845.2,1.8113]
[1746324770482,4.29147,1845.4,1845.2,1.8113]
[1746324770778,4.29147,1845.4,1845.2,2.89501]
[1746324771778,4.29147,1845.4,1845.3,1.8382]
[1746324771779,6.27787,1845.4,1845.3,1.8382]
[1746324772481,1.9864,1845.4,1845.3,2.92187]
[1746324772678,1.864,1845.5,1845.4,1.08361]
[1746324772874,1.864,1845.5,1845.4,4.98951]
[1746324773072,5.1699,1845.6,1845.5,1.08355]
[1746324773073,3.2078,1845.6,1845.5,1.08355]
[1746324773274,3.2078,1845.6,1845.5,3.09215]
[1746324775382,4.29129,1845.6,1845.5,2.0086]
[1746324775682,3.2078,1845.6,1845.5,2.0086]
[1746324776177,3.2078,1845.6,1845.5,3.09215]
[1746324776381,1.8208,1845.7,1845.5,4.88467]
[1746324776583,1.8208,1845.7,1845.6,3.07739]
[1746324776981,1.9216,1845.8,1845.7,1.08343]
[1746324777183,1.9216,1845.8,1845.7,3.07733]
[1746324779282,1.9216,1845.8,1845.7,1.9939]
[1746324779283,3.00497,1845.8,1845.7,1.9939]
[1746324779483,4.89057,1845.8,1845.7,1.9939]
[1746324779787,4.89057,1845.8,1845.7,3.07733]
[1746324780186,4.89057,1845.8,1845.7,1.9939]
[1746324780386,3.2078,1846.0,1845.9,1.08331]
[1746324780687,4.29106,1846.0,1845.9,1.08331]
[1746324780881,4.80056,1846.2,1845.7,16.39534]
[1746324781083,6.65986,1846.2,1846.0,1.08322]
[1746324781284,5.5767,1846.2,1846.1,3.0739]
[1746324781789,5.5767,1846.2,1846.1,1.9907]
[1746324781977,5.5767,1846.2,1846.1,3.0739]
[1746324783083,6.65984,1846.2,1846.1,1.9907]
[1746324783291,5.5767,1846.2,1846.1,3.0739]
[1746324786192,6.65984,1846.2,1846.1,1.9907]
[1746324786488,6.65984,1846.2,1846.0,2.92432]
[1746324786489,6.65984,1846.2,1846.0,1.08322]
[1746324786676,1.9412,1846.1,1846.0,1.08322]
[1746324786882,1.9412,1846.1,1845.9,3.04037]
[1746324787188,1.9412,1846.1,1846.0,1.08326]
[1746324787590,1.9412,1846.1,1845.9,1.9571]
[1746324787887,1.9412,1846.1,1846.0,1.08326]
[1746324788085,1.9412,1846.1,1845.9,1.9571]
[1746324788387,1.08335,1845.9,1845.7,9.7231]
[1746324788588,3.8352,1845.8,1845.7,9.7231]
[1746324788782,4.91857,1845.8,1845.7,9.7231]
[1746324788985,4.91857,1845.8,1845.7,8.63967]
[1746324789183,3.8352,1845.8,1845.7,9.7231]
[1746324789477,1.914,1845.8,1845.7,9.7231]
[1746324790689,1.9975,1845.9,1845.8,1.08337]
[1746324790893,1.9975,1845.9,1845.8,3.07417]
[1746324791191,1.08329,1846.0,1845.9,1.08331]
[1746324791390,3.08079,1846.0,1845.9,3.07411]
[1746324791684,1.9975,1846.0,1845.9,3.07411]
[1746324791890,1.9207,1846.1,1846.0,1.08326]
[1746324792088,3.0039,1846.1,1846.0,1.9908]
[1746324792383,1.08334,1845.9,1845.8,1.08335]
[1746324792583,1.08334,1845.9,1845.8,3.07415]
[1746324792791,3.0808,1846.0,1845.8,3.07415]
[1746324793891,1.08331,1845.9,1845.8,3.07415]
[1746324794092,1.08337,1845.8,1845.7,6.63907]
[1746324794284,2.97187,1845.8,1845.7,9.84687]
[1746324794484,1.8885,1845.8,1845.7,7.7225]
[1746324795079,1.8169,1845.9,1845.8,1.08337]
[1746324795289,1.8885,1846.0,1845.8,1.856]
[1746324795489,1.8885,1846.0,1845.9,1.08331]
[1746324795889,1.8885,1846.0,1845.9,2.93931]
[1746324799194,3.7376,1846.1,1846.0,1.08326]
[1746324799390,3.7376,1846.1,1846.0,3.02546]
[1746324799792,4.8208,1846.1,1846.0,3.02546]
[1746324800005,4.8208,1846.1,1846.0,1.9422]
[1746324800295,3.7376,1846.1,1845.8,1.08333]
[1746324800486,3.7831,1846.0,1845.8,1.08333]
[1746324800685,3.01911,1845.9,1845.8,1.08333]
[1746324800885,1.9358,1845.9,1845.8,1.08333]
[1746324802384,1.9358,1845.9,1845.8,2.96923]
[1746324802998,1.9358,1845.9,1845.8,1.08333]
[1746324803798,1.08337,1845.8,1845.7,6.63907]
[1746324804191,1.08337,1845.8,1845.7,1.08343]
[1746324804596,1.08337,1845.8,1845.6,1.08345]
[1746324804785,6.0006,1845.7,1845.6,1.08345]
[1746324806093,7.08403,1845.7,1845.6,1.08345]
[1746324806297,1.08349,1845.6,1845.5,3.2078]
[1746324806490,2.90209,1845.6,1845.5,3.2078]
[1746324806692,1.8186,1845.6,1845.5,4.29135]
[1746324806891,1.8186,1845.6,1845.5,6.22925]
[1746324807398,2.90209,1845.6,1845.5,5.1457]
[1746324807599,2.90209,1845.6,1845.5,6.22925]
[1746324809201,2.90209,1845.6,1845.5,5.1457]
[1746324809699,1.8186,1845.6,1845.5,6.22925]
[1746324809900,2.90209,1845.6,1845.5,3.2078]
[1746324810199,3.9929,1845.7,1845.6,1.08349]
[1746324810593,5.9394,1845.7,1845.6,2.96969]
[1746324811094,3.59873825,1845.9,1845.8,1.08337]
[1746324811295,7.38123825,1845.9,1845.8,1.08337]
[1746324812301,8.46454825,1845.9,1845.8,1.08337]
[1746324812702,8.46454825,1845.9,1845.7,2.96959]
[1746324815106,1.08337,1845.8,1845.7,2.96959]
[1746324815403,3.09117,1845.8,1845.7,2.96959]
[1746324815799,3.09117,1845.8,1845.7,1.8862]
[1746324816008,3.09117,1845.8,1845.6,1.08345]
[1746324816209,3.8546,1845.7,1845.6,1.08345]
[1746324816399,3.8546,1845.7,1845.6,3.05485]
[1746324816905,3.59873825,1846.1,1846.0,1.08326]
[1746324817100,5.53113825,1846.1,1846.0,1.08326]
[1746324817500,5.53113825,1846.1,1846.0,5.03856]
[1746324817706,5.53113825,1846.1,1846.0,8.79156]
[1746324818608,7.43873825,1846.1,1846.0,6.80766]
[1746324818998,8.52193825,1846.1,1846.0,5.7244]
[1746324819399,1.08326,1846.0,1845.9,2.87607]
[1746324819598,2.99086,1846.0,1845.9,2.87607]
[1746324820206,7.99086,1846.0,1845.9,2.87607]
[1746324820714,1.08335,1845.9,1845.7,3.753]
[1746324820911,4.96575,1845.9,1845.7,3.753]
[1746324821310,1.9373,1845.8,1845.7,3.753]
[1746324821506,3.02067,1845.8,1845.7,3.753]
[1746324822010,1.08344,1845.7,1845.5,7.16741]
[1746324822215,1.8335,1845.6,1845.5,3.2078]
[1746324822513,3.7786,1845.6,1845.5,3.2078]
[1746324822708,5.7159,1845.6,1845.5,3.2078]
[1746324823316,5.7159,1845.6,1845.4,7.1681598]
[1746324823510,3.02085,1845.5,1845.3,8.04445]
[1746324823711,1.9934,1845.4,1845.3,6.9608]
[1746324823908,5.2012,1845.4,1845.1,8.09507]
[1746324824221,2.9522,1845.3,1845.0,7.1681598]
[1746324824402,3.02955,1845.2,1845.0,7.1681598]
[1746324824610,5.02295,1845.2,1845.0,7.1681598]
[1746324824802,1.9934,1845.1,1845.0,7.1681598]
[1746324826115,3.07718,1845.1,1845.0,7.1681598]
[1746324828122,8.07718,1845.1,1845.0,7.1681598]
[1746324828619,8.07718,1845.1,1844.9,10.77470635]
[1746324828620,1.9934,1845.1,1844.9,1.08386]
[1746324828912,3.02954,1845.2,1845.1,1.08378]
[1746324828913,1.9458,1845.2,1845.1,1.08378]
[1746324829323,5.46723825,1845.3,1845.1,1.08378]
[1746324829519,5.46723825,1845.3,1845.2,1.8416]
[1746324830320,6.55090825,1845.3,1845.2,1.8416]
[1746324830513,8.49040825,1845.3,1845.2,1.8416]
[1746324831115,7.40673825,1845.3,1845.2,1.8416]
[1746324831422,3.59873825,1845.3,1845.2,1.8416]